fUSD/lending_fUSD_20250228
["ID","MTS","AMOUNT","RATE_DAILY","PERIOD"]
[354853679,1740743436710,-500.0,0.00055068,2]
[354853681,1740743436719,-500.0,0.00055068,120]
[354853683,1740743436728,-500.0,0.00055068,2]
[354853685,1740743436738,-218.11,0.00055068,120]
[354853687,1740743436747,-162.36,0.00055223,2]
[354853689,1740743436757,-712.04835395,0.00055247,27]
[354853691,1740743436766,-512.91081797,0.00055342,120]
[354853693,1740743436775,-255.98,0.00055342,120]
[354853695,1740743436784,-500.0,0.00055342,120]
[354853697,1740743436793,-321.18,0.00055342,120]
[354853699,1740743436802,-500.0,0.00055342,120]
[354853701,1740743436811,-500.0,0.00055342,120]
[354853703,1740743436820,-403.66,0.00055342,120]
[354853705,1740743436829,-500.0,0.00055342,120]
[354853706,1740743436838,-1437.13,0.00055342,120]
[354853707,1740743436847,-441.7,0.00055342,30]
[354853708,1740743436857,-500.0,0.00055342,120]
[354853709,1740743436866,-500.0,0.00055342,120]
[354853710,1740743436876,-4426.16,0.00055342,120]
[354853711,1740743436886,-473.66,0.00055342,120]
[354853712,1740743436895,-500.0,0.00055342,2]
[354853713,1740743436905,-467.19,0.00055342,120]
[354853714,1740743436914,-500.0,0.00055342,2]
[354853715,1740743436923,-178.62,0.00055347,2]
[354853716,1740743436932,-3912.83330662,0.00055516,15]
[354853717,1740743436941,-334.12,0.00055616,120]
[354853718,1740743436952,-500.0,0.00055616,120]
[354853719,1740743436961,-500.0,0.00055616,120]
[354853720,1740743436970,-402.42,0.00055616,120]
[354853721,1740743436979,-1437.13,0.00055616,120]
[354853722,1740743436988,-496.52,0.00055616,120]
[354853723,1740743436997,-500.0,0.00055616,120]
[354853724,1740743437006,-4426.16,0.00055616,120]
[354853725,1740743437015,-500.0,0.00055616,2]
[354853726,1740743437024,-494.0,0.00055616,2]
[354853727,1740743437034,-356.41,0.00055721,2]
[354853728,1740743437043,-162.36,0.00055765,2]
[354853729,1740743437052,-501.61279016,0.00055781,7]
[354853730,1740743437061,-500.0,0.0005589,120]
[354853731,1740743437070,-500.0,0.0005589,120]
[354853732,1740743437079,-1437.13,0.0005589,120]
[354853733,1740743437088,-500.0,0.0005589,120]
[354853734,1740743437097,-4426.16,0.0005589,120]
[354853735,1740743437107,-500.0,0.0005589,2]
[354853736,1740743437116,-3912.83330662,0.00056064,15]
[354853737,1740743437128,-168.62,0.00056112,2]
[354853738,1740743437139,-500.0,0.00056164,120]
[354853739,1740743437148,-500.0,0.00056164,120]
[354853740,1740743437157,-1437.13,0.00056164,120]
[354853741,1740743437167,-500.0,0.00056164,120]
[354853742,1740743437176,-4426.16,0.00056164,120]
[354853743,1740743437186,-500.0,0.00056164,2]
[354853744,1740743437195,-162.36,0.00056306,2]
[354853745,1740743437205,-310.00763216,0.00056328,2]
[354853746,1740743437214,-500.0,0.00056428,120]
[354853748,1740743437224,-500.0,0.00056437,90]
[354853750,1740743437234,-500.0,0.00056438,120]
[354853751,1740743437243,-500.0,0.00056438,120]
[354853752,1740743437251,-1437.13,0.00056438,120]
[354853753,1740743437260,-500.0,0.00056438,120]
[354853754,1740743437269,-4426.16,0.00056438,120]
[354853756,1740743437279,-500.0,0.00056438,2]
[354853758,1740743437288,-1000.0,0.00056509,120]
[354853760,1740743437297,-3912.83330662,0.00056612,15]
[354853762,1740743437306,-500.0,0.00056702,120]
[354853764,1740743437315,-250.48,0.00056712,120]
[354853766,1740743437325,-500.0,0.00056712,120]
[354853768,1740743437334,-1437.13,0.00056712,120]
[354853771,1740743437343,-500.0,0.00056712,120]
[354853774,1740743437352,-4426.16,0.00056712,120]
[354853776,1740743437362,-500.0,0.00056712,2]
[354853778,1740743437372,-970.95738624,0.00056715,30]
[354853780,1740743437381,-162.36,0.00056847,2]
[354853782,1740743437390,-500.0,0.00056976,120]
[354853783,1740743437400,-500.0,0.00056986,120]
[354853784,1740743437409,-1437.13,0.00056986,120]
[354853785,1740743437419,-500.0,0.00056986,120]
[354853786,1740743437428,-4426.16,0.00056986,120]
[354853787,1740743437437,-500.0,0.00056986,2]
[354853788,1740743437447,-183.7,0.0005699,120]
[354853789,1740743437456,-500.0,0.00056998,120]
[354853790,1740743437465,-568.73960769,0.00056998,120]
[354853791,1740743437474,-500.0,0.00056998,120]
[354853792,1740743437484,-303.2911019,0.00056999,91]
[354853793,1740743437493,-265788.27339531,0.00056999,70]
[354853794,1740743437560,-82369.68273865,0.00056999,70]
[354853795,1740743437576,-1051.74850456,0.00056999,70]
[354853803,1740743441145,-100721.97150873,0.00056999,70]
[354853804,1740743441157,-1259.34392676,0.00056999,70]
[354853805,1740743441299,-446.38,0.00056999,70]
[354853806,1740743441352,-257.7240709,0.00056999,70]
[354853807,1740743441459,-252.37254939,0.00056999,70]
[354853808,1740743441513,-28059.45596601,0.00056999,70]
[354853809,1740743441524,-1642.45307069,0.00057,120]
[354853810,1740743441535,-8582.98,0.00057,120]
[354853845,1740743445751,-2050.99999,0.00057,120]
[354853846,1740743445911,-5568.08113995,0.00057,120]
[354853856,1740743873182,-528.0,0.00026986,120]
[354853857,1740743917260,-150.0,0.00026986,120]
[354853858,1740743925405,-122.0,0.00026986,120]
[354853859,1740744054425,-250.0,0.00021,2]
[354853860,1740744054451,-427.59,0.00021,2]
[354853861,1740744054475,-300.0,0.00023,2]
[354853862,1740744054499,-7022.41,0.00024,2]
[354853864,1740744488652,-271.20383361,0.00024,2]
[354853865,1740744488678,-350.0,0.00025,2]
[354853882,1740744631734,-400.0,0.00027,2]
[354853883,1740744631745,-450.0,0.00029,2]
[354853884,1740744631755,-596.00956848,0.00034804,2]
[354853885,1740744631765,-610.95726914,0.00039352,2]
[354853886,1740744631775,-108.16426115,0.00039352,2]
[354853887,1740744631787,-360.4367498,0.00039352,2]
[354853888,1740744631799,-54.32118794,0.00039352,2]
[354853889,1740744631809,-157.04,0.00039452,2]
[354853890,1740744631819,-610.95726913,0.00046416,2]
[354853891,1740744631829,-174.0,0.00046973,120]
[354853892,1740744631839,-710.50244127,0.0004698,2]
[354853893,1740744631850,-207.80970411,0.000475,2]
[354853894,1740744631860,-276.0866141,0.000488,120]
[354853895,1740744631869,-1343.0,0.000488,120]
[354853896,1740744631879,-450.0,0.00049249,2]
[354853897,1740744632058,-450.0,0.0004959,2]
[354853898,1740744632071,-377.17533799,0.0005113,2]
[354853899,1740744632081,-1820.59,0.00052339,120]
[354853900,1740744632093,-1000.0,0.00052455,120]
[354853901,1740744632105,-1087.0,0.000525,120]
[354853902,1740744632116,-23900.0,0.00052742,2]
[354853903,1740744632125,-450.0,0.00052768,2]
[354853904,1740744632136,-162.735,0.000528,97]
[354853905,1740744632146,-174.36386658,0.000528,97]
[354853906,1740744632156,-28323.56,0.00052915,64]
[354853907,1740744632166,-6050.13,0.00053073,2]
[354853908,1740744632176,-150.0,0.00053081,7]
[354853909,1740744632187,-7538.92202454,0.00053425,2]
[354853910,1740744632197,-610.95726913,0.00053479,2]
[354853911,1740744632207,-675.0,0.00053486,9]
[354853912,1740744632217,-7914.46,0.00053487,2]
[354853913,1740744632228,-519.17,0.0005358,2]
[354853914,1740744632237,-37694.06655082,0.00054406,30]
[354853915,1740744632246,-178.26,0.0005445,91]
[354853916,1740744632256,-318.95862021,0.00055114,2]
[354853917,1740744632267,-458.14,0.00055477,30]
[354853918,1740744632276,-519.17,0.00055843,2]
[354853919,1740744632286,-250.0,0.00055861,120]
[354853920,1740744632295,-1106.6449,0.000559,120]
[354853921,1740744632305,-2347.69998399,0.00055926,15]
[354853922,1740744632315,-177.57886311,0.00055926,28]
[354853923,1740744632325,-310.00763216,0.00055926,2]
[354853924,1740744632335,-690.09082372,0.00055926,27]
[354853925,1740744632348,-501.34257018,0.0005599,120]
[354853926,1740744632358,-183.71,0.0005599,120]
[354853927,1740744632367,-10000.0,0.00055998,120]
[354853928,1740744632377,-500.0,0.00055999,120]
[354853929,1740744632387,-598.11772538,0.00055999,120]
[354853930,1740744632397,-500.0,0.00055999,120]
[354853931,1740744632406,-500.0,0.00055999,120]
[354853932,1740744632417,-2766.35,0.00055999,120]
[354853933,1740744632428,-500.0,0.00055999,2]
[354853934,1740744632438,-16149.36989782,0.00056,30]
[354853935,1740744632452,-62232.97715329,0.00056,30]
[354853936,1740744632464,-4822.95,0.00056,30]
[354853937,1740744632476,-11437.23281721,0.00056,30]
[354853938,1740744632489,-798.32798818,0.00056,30]
[354853939,1740744632501,-18620.39418522,0.00056,30]
[354853940,1740744632514,-70733.48053247,0.00056,30]
[354853941,1740744632526,-1365.199996,0.00056,30]
[354853942,1740744632538,-321.5913087,0.00056,30]
[354853943,1740744632550,-450.653,0.00056,30]
[354853945,1740744637719,-286.20679667,0.00056,30]
[354853946,1740744637772,-120463.86027359,0.00056,30]
[354853947,1740744637827,-40323.3,0.00056,30]
[354853948,1740744637904,-255.41677298,0.00056,30]
[354854093,1740744639724,-461.584,0.00056,30]
[354854094,1740744639885,-1133.05,0.00056,30]
[354854095,1740744639940,-573.619998,0.00056,30]
[354854096,1740744639952,-299.89956351,0.00056,30]
[354854097,1740744639966,-394.04068009,0.00056,30]
[354854098,1740744639998,-1344.63390001,0.00056,30]
[354854099,1740744640009,-42341.70107344,0.00056,30]
[354854100,1740744640022,-320.57292642,0.00056,30]
[354854101,1740744640158,-64427.25342731,0.00056,30]
[354854102,1740744640170,-120872.33906687,0.00056,30]
[354854127,1740744642829,-4234.0,0.00056,30]
[354854128,1740744642841,-679.0120005,0.00056,30]
[354854129,1740744642854,-748.0560267,0.00056,30]
[354854130,1740744642866,-625.982,0.00056,30]
[354854131,1740744642878,-589.0474902,0.00056,30]
[354854132,1740744642889,-938.76621536,0.00056,30]
[354854133,1740744642937,-52754.30978168,0.00056,30]
[354854134,1740744642949,-113431.61177365,0.00056,30]
[354854135,1740744642994,-28269.45914577,0.00056,30]
[354854136,1740744643003,-160.66,0.00056026,120]
[354854137,1740744643013,-2347.69998397,0.00056256,15]
[354854138,1740744643022,-500.0,0.00056273,120]
[354854139,1740744643031,-500.0,0.00056273,120]
[354854140,1740744643040,-2766.35,0.00056273,120]
[354854141,1740744643049,-500.0,0.00056273,2]
[354854142,1740744643058,-941.64,0.00056441,30]
[354854143,1740744643070,-882.19,0.00056441,30]
[354854144,1740744643080,-500.0,0.00056547,120]
[354854145,1740744643089,-500.0,0.00056547,120]
[354854146,1740744643098,-2766.35,0.00056547,120]
[354854147,1740744643109,-500.0,0.00056547,2]
[354854148,1740744643118,-151.64555095,0.00056587,91]
[354854149,1740744643127,-43585.10902643,0.00056587,70]
[354854150,1740744643138,-2454.21,0.00056587,70]
[354854154,1740744643763,-2266.73215822,0.00056587,70]
[354854155,1740744643775,-2127.5000002,0.00056587,70]
[354854158,1740744645907,-339.35574395,0.00056587,70]
[354854159,1740744645999,-0.14694987,0.00056587,70]
[354854160,1740744646015,-10948.5134584,0.00056587,70]
[354854161,1740744646026,-4496.78739365,0.00056587,70]
[354854162,1740744646039,-1655.78001,0.00056587,70]
[354854163,1740744646050,-2370.0,0.00056587,70]
[354854164,1740744646123,-753.16109136,0.00056587,70]
[354854165,1740744646135,-842.57292098,0.00056587,70]
[354854166,1740744646282,-10312.93570162,0.00056587,70]
[354854167,1740744646313,-6454.87435894,0.00056587,70]
[354854168,1740744646335,-356.79000028,0.00056587,70]
[354855690,1740745366097,10000.0,0.00023,30]
[354855691,1740745406354,-415.00994953,0.000549,120]
[354855692,1740745406381,-162.735,0.00055,104]
[354855693,1740745406407,-278.52188848,0.00055,120]
[354855694,1740745406433,-415.00994953,0.00055489,120]
[354855695,1740745406460,-7344.0,0.000559,120]
[354855696,1740745406487,-500.0,0.00055999,120]
[354855697,1740745406514,-415.00994953,0.00056077,120]
[354855698,1740745406540,-1000.0,0.00056245,30]
[354855699,1740745406566,-500.0,0.00056273,120]
[354855700,1740745406591,-229.07,0.00056348,30]
[354855701,1740745406617,-250.0,0.00056546,120]
[354855702,1740745406644,-500.0,0.00056547,120]
[354855703,1740745406670,-1037.00414,0.00056547,92]
[354855704,1740745406695,-2003.0,0.00056587,120]
[354855705,1740745406722,-160.66,0.000566,120]
[354855706,1740745406748,-500.0,0.00056821,120]
[354855707,1740745406774,-216.64824941,0.000569,66]
[354855708,1740745406800,-500.0,0.00056999,120]
[354855709,1740745406826,-547.23,0.00056999,120]
[354855710,1740745406852,-2420.56,0.00056999,120]
[354855711,1740745406879,-167.84288447,0.00056999,120]
[354855712,1740745406904,-60959.79588635,0.00057,120]
[354855713,1740745406930,-500.0,0.00057095,120]
[354855714,1740745406956,-2420.56,0.00057273,120]
[354855715,1740745406983,-500.0,0.00057369,120]
[354855716,1740745407009,-501.42343041,0.00057389,60]
[354855717,1740745407036,-2420.56,0.00057547,120]
[354855718,1740745407064,-528.0,0.00057589,120]
[354855719,1740745407092,-150.0,0.000576,120]
[354855720,1740745407118,-285.39685146,0.000576,120]
[354855721,1740745407146,-261.69105399,0.000576,120]
[354855722,1740745407173,-283.43505138,0.000576,120]
[354855723,1740745407200,-261.05767513,0.000576,120]
[354855724,1740745407228,-500.0,0.00057643,120]
[354855725,1740745407258,-47894.40000053,0.000577,120]
[354855726,1740745407286,-216.64824938,0.00057733,70]
[354855727,1740745407314,-16148.79163916,0.00057799,120]
[354855728,1740745407342,-162.88434614,0.000578,36]
[354855729,1740745407368,-200.0,0.00057818,120]
[354855730,1740745407394,-2420.56,0.00057821,120]
[354855731,1740745407421,-368.0,0.00057863,120]
[354855732,1740745407446,-150.0,0.0005787,30]
[354855733,1740745407472,-500.0,0.00057888,120]
[354855734,1740745407499,-500.0,0.00057888,120]
[354855735,1740745407527,-500.0,0.00057888,120]
[354855736,1740745407553,-500.0,0.00057888,90]
[354855737,1740745407581,-500.0,0.00057888,120]
[354855738,1740745407608,-500.0,0.00057888,120]
[354855739,1740745407634,-311.86922376,0.00057888,120]
[354855740,1740745407660,-215.45763809,0.00057888,120]
[354855741,1740745407688,-500.0,0.00057888,120]
[354855742,1740745407715,-898.21,0.00057888,120]
[354855743,1740745407742,-151.0,0.0005789,120]
[354855744,1740745407770,-500.0,0.00057898,120]
[354855745,1740745407797,-268.68240777,0.00057898,120]
[354855746,1740745407823,-104592.59204546,0.00057899,30]
[354855747,1740745407851,-151.64555095,0.000579,91]
[354855748,1740745407879,-262848.37659756,0.000579,72]
[354855749,1740745407905,-1000.0,0.000579,120]
[354855750,1740745407931,-7500.0,0.000579,120]
[354855751,1740745407957,-88888.0,0.000579,120]
[354855752,1740745407984,-500.0,0.00057917,120]
[354855753,1740745408012,-276.24,0.0005799,120]
[354855754,1740745408039,-631.93395798,0.00057999,120]
[354855755,1740745408064,-151.98197035,0.00057999,120]
[354855756,1740745408091,-500.0,0.00057999,90]
[354855757,1740745408119,-500.0,0.00057999,90]
[354855758,1740745408144,-500.0,0.00057999,90]
[354855759,1740745408170,-500.0,0.00057999,90]
[354855760,1740745408196,-500.0,0.00057999,90]
[354855761,1740745408224,-500.0,0.00057999,90]
[354855762,1740745408252,-500.0,0.00057999,90]
[354855763,1740745408286,-100000.0,0.00058,58]
[354855764,1740745408328,-988256.0,0.00058,120]
[354855765,1740745408360,-189831.0,0.00058,120]
[354855766,1740745408386,-151.0,0.00058,120]
[354855767,1740745408411,-151.0,0.00058,120]
[354855768,1740745408437,-177.170982,0.00058,120]
[354855769,1740745408464,-151.0,0.00058,120]
[354855770,1740745408490,-193.318232,0.00058,120]
[354855771,1740745408518,-193.318232,0.00058,120]
[354855772,1740745408544,-204.70992364,0.00058038,120]
[354855773,1740745408570,-2420.56,0.00058095,120]
[354855774,1740745408732,-173.05,0.00058162,120]
[354855775,1740745408759,-579.04,0.00058162,120]
[354855776,1740745408787,-500.0,0.00058162,120]
[354855777,1740745408814,-500.0,0.00058162,120]
[354855778,1740745408840,-500.0,0.00058162,120]
[354855779,1740745408866,-500.0,0.00058162,120]
[354855780,1740745408892,-898.21,0.00058162,120]
[354855781,1740745408919,-500.0,0.00058191,120]
[354855782,1740745408944,-2420.56,0.00058369,120]
[354855783,1740745408970,-301.81688,0.00058436,120]
[354855784,1740745408996,-500.0,0.00058436,120]
[354855785,1740745409023,-500.0,0.00058436,120]
[354855786,1740745409048,-251.5,0.00058436,120]
[354855787,1740745409078,-898.21,0.00058436,120]
[354855788,1740745409104,-500.0,0.00058465,120]
[354855789,1740745409130,-216.64824938,0.00058567,73]
[354855790,1740745409155,-2420.56,0.00058643,120]
[354855791,1740745409180,-653.283102,0.000587,120]
[354855792,1740745409206,-500.0,0.0005871,120]
[354855793,1740745409231,-500.0,0.0005871,120]
[354855794,1740745409261,-898.21,0.0005871,120]
[354855795,1740745409287,-151.0,0.00058733,120]
[354855796,1740745409314,-240.22843612,0.00058733,120]
[354855797,1740745409341,-500.0,0.00058739,120]
[354855798,1740745409367,-158.509538,0.000588,120]
[354855799,1740745409391,-3532.32261775,0.000589,30]
[354855800,1740745409417,-2420.56,0.00058917,120]
[354855801,1740745409443,-1810.5864928,0.00058935,120]
[354855802,1740745409469,-151.0,0.0005896,120]
[354855803,1740745409494,-193.318232,0.0005896,120]
[354855804,1740745409524,-193.318232,0.0005896,120]
[354855805,1740745409550,-500.0,0.00058984,120]
[354855806,1740745409576,-500.0,0.00058984,120]
[354855807,1740745409602,-898.21,0.00058984,120]
[354855808,1740745409627,-3861.82870204,0.00058987,120]
[354855809,1740745409652,-500.0,0.00058999,90]
[354855810,1740745409677,-500.0,0.00058999,90]
[354855811,1740745409701,-500.0,0.00058999,90]
[354855812,1740745409726,-391.17,0.00058999,90]
[354855813,1740745409753,-100000.0,0.00059,59]
[354855814,1740745409780,-1000000.0,0.00059,120]
[354855815,1740745409807,-1000000.0,0.00059,120]
[354855816,1740745409832,-166.526506,0.00059,120]
[354855817,1740745409858,-151.0,0.00059,120]
[354855818,1740745409883,-151.0,0.00059,120]
[354855819,1740745409909,-151.0,0.00059,120]
[354855820,1740745409935,-151.0,0.00059,120]
[354855821,1740745409961,-193.318232,0.00059,120]
[354855822,1740745409988,-193.318232,0.00059,120]
[354855823,1740745410015,-193.318232,0.00059,120]
[354855824,1740745410042,-193.318232,0.00059,120]
[354855825,1740745410069,-1000.0,0.00059012,120]
[354855826,1740745410094,-2420.56,0.00059191,120]
[354855827,1740745410121,-500.0,0.00059258,120]
[354855828,1740745410147,-500.0,0.00059258,120]
[354855829,1740745410175,-898.21,0.00059258,120]
[354855830,1740745410200,-216.64824938,0.000594,77]
[354855831,1740745410227,-2420.56,0.00059465,120]
[354855832,1740745410257,-500.0,0.00059532,120]
[354855833,1740745410283,-500.0,0.00059532,120]
[354855834,1740745410311,-898.21,0.00059532,120]
[354855835,1740745410339,-150.0,0.00059733,120]
[354855836,1740745410366,-2420.56,0.00059739,120]
[354855837,1740745410392,-501.95600001,0.00059806,120]
[354855838,1740745410419,-500.0,0.00059806,120]
[354855839,1740745410444,-898.21,0.00059806,120]
[354855840,1740745410469,-638.0,0.00059839,60]
[354855841,1740745410495,-100000.0,0.0005988,30]
[354855842,1740745410522,-184.09,0.00059986,120]
[354855843,1740745410547,-1000.0,0.00059999,120]
[354855844,1740745410574,-100000.0,0.0006,60]
[354855845,1740745410598,-1009.08619058,0.0006,120]
[354855846,1740745410622,-494.52123659,0.0006,120]
[354855847,1740745410648,-734781.87545091,0.0006,120]
[354855848,1740745415518,-265218.12454909,0.0006,120]
[354855849,1740745415544,-77667.37414846,0.0006,120]
[354855850,1740745415569,-2009.46,0.0006,120]
[354855851,1740745415596,-1000000.0,0.0006,120]
[354855852,1740745415621,-10000.0,0.0006,30]
[354855853,1740745415646,-373.82,0.0006,120]
[354855854,1740745415671,-151.0,0.0006,120]
[354855855,1740745415696,-151.0,0.0006,120]
[354855856,1740745415721,-151.0,0.0006,120]
[354855857,1740745415746,-151.0,0.0006,120]
[354855858,1740745415772,-198.422176,0.0006,120]
[354855859,1740745415798,-193.318232,0.0006,120]
[354855860,1740745415822,-193.318232,0.0006,120]
[354855861,1740745415847,-193.318232,0.0006,120]
[354855862,1740745415872,-193.318232,0.0006,120]
[354855863,1740745415896,-193.318232,0.0006,120]
[354855864,1740745415921,-193.318232,0.0006,120]
[354855865,1740745416050,-2420.56,0.00060013,120]
[354855866,1740745416077,-500.0,0.0006008,120]
[354855867,1740745416103,-898.21,0.0006008,120]
[354855868,1740745416128,-216.64824938,0.00060233,80]
[354855869,1740745416153,-2420.56,0.00060287,120]
[354855870,1740745416179,-500.0,0.00060354,120]
[354855871,1740745416206,-898.21,0.00060354,120]
[354855872,1740745416231,-3532.32261775,0.000604,30]
[354855873,1740745416260,-638.0,0.00060456,60]
[354855874,1740745416287,-1000000.0,0.000605,120]
[354855875,1740745416313,-151.0,0.000605,120]
[354855876,1740745416340,-193.318232,0.000605,120]
[354855877,1740745416366,-193.318232,0.000605,120]
[354855878,1740745416391,-2420.56,0.00060561,120]
[354855879,1740745416416,-500.0,0.00060628,120]
[354855880,1740745416442,-898.21,0.00060628,120]
[354855881,1740745416467,-988.5,0.00060631,30]
[354855882,1740745416492,-988.5,0.00060631,30]
[354855883,1740745416518,-988.5,0.00060631,30]
[354855884,1740745416542,-988.5,0.00060631,30]
[354855885,1740745416568,-988.5,0.00060631,30]
[354855886,1740745416592,-988.5,0.00060631,30]
[354855887,1740745416617,-200.0,0.00060636,120]
[354855888,1740745416642,-2420.56,0.00060835,120]
[354855889,1740745416668,-200.0,0.00060884,120]
[354855890,1740745416692,-162.88434613,0.000609,40]
[354855891,1740745416718,-166.50451807,0.000609,120]
[354855892,1740745416744,-500.0,0.00060902,120]
[354855893,1740745416769,-898.21,0.00060902,120]
[354855894,1740745416795,-200.0,0.00060937,120]
[354855895,1740745416821,-100000.0,0.00061,61]
[354855896,1740745416846,-1000000.0,0.00061,120]
[354855897,1740745416871,-1000000.0,0.00061,120]
[354855898,1740745416895,-515708.81353912,0.00061,120]
[354855899,1740745420180,-166.50451805,0.000609,120]
[354855900,1740745420208,-484291.18646088,0.00061,120]
[354855901,1740745420235,-151.0,0.00061,120]
[354855902,1740745420267,-151.0,0.00061,120]
[354855903,1740745420294,-193.318232,0.00061,120]
[354855904,1740745420324,-193.318232,0.00061,120]
[354855905,1740745420352,-193.318232,0.00061,120]
[354855906,1740745420377,-193.31824,0.00061,120]
[354855907,1740745420405,-50211.40508574,0.00061029,120]
[354855908,1740745420431,-216.64824938,0.00061067,83]
[354855909,1740745420457,-638.0,0.00061073,60]
[354855910,1740745420482,-2420.56,0.00061109,120]
[354855911,1740745420508,-500.0,0.00061176,120]
[354855912,1740745420534,-898.21,0.00061176,120]
[354855913,1740745420559,-2420.56,0.00061383,120]
[354855914,1740745420585,-206.99108353,0.0006145,120]
[354855915,1740745420611,-898.21,0.0006145,120]
[354855916,1740745420637,-1000000.0,0.000615,120]
[354855917,1740745420663,-8437.4,0.000615,120]
[354855918,1740745420688,-1000000.0,0.000615,120]
[354855919,1740745420713,-1037.00414,0.00061547,92]
[354855920,1740745420738,-2420.56,0.00061657,120]
[354855921,1740745420762,-638.0,0.0006169,60]
[354855922,1740745420787,-207.90176465,0.0006169,60]
[354855923,1740745420812,-898.21,0.00061724,120]
[354855924,1740745420837,-150.0,0.00061867,120]
[354855925,1740745420863,-216.64824938,0.000619,87]
[354855926,1740745420888,-3532.32261775,0.000619,30]
[354855927,1740745420914,-2420.56,0.00061931,120]
[354855928,1740745420940,-898.21,0.00061998,120]
[354855929,1740745420965,-704.83076541,0.00062,120]
[354855930,1740745420991,-5000.0,0.00062,120]
[354855931,1740745421018,-1000000.0,0.00062,120]
[354855932,1740745421045,-1000000.0,0.00062,120]
[354855933,1740745421071,-429494.80412923,0.00062,120]
[354855934,1740745428788,-166.50451805,0.000609,120]
[354855935,1740745428817,-570505.19587077,0.00062,120]
[354855936,1740745428844,-1000000.0,0.00062,120]
[354855937,1740745428870,-1000000.0,0.00062,120]
[354855938,1740745428896,-18365.00268656,0.00062,30]
[354855939,1740745428922,-2420.56,0.00062205,120]
[354855940,1740745428948,-898.21,0.00062272,120]
[354855941,1740745428973,-638.0,0.00062307,60]
[354855942,1740745428998,-2420.56,0.00062479,120]
[354855943,1740745429024,-1000000.0,0.000625,120]
[354855944,1740745429049,-898.21,0.00062546,120]
[354855945,1740745429075,-2420.56,0.00062753,120]
[354855946,1740745429101,-965.46,0.00062767,30]
[354855947,1740745429127,-898.21,0.0006282,120]
[354855948,1740745429152,-638.0,0.00062924,60]
[354855949,1740745429178,-1000.0,0.00063,120]
[354855950,1740745429312,-287820.32627644,0.00063,120]
[354855951,1740745429342,-1000000.0,0.00063,120]
[354855952,1740745429370,-109945.20064818,0.00063,120]
[354855953,1740745432669,-150.0,0.000625,120]
[354855954,1740745432699,-890054.79935182,0.00063,120]
[354855955,1740745432727,-1000000.0,0.00063,120]
[354855956,1740745432754,-1000000.0,0.00063,120]
[354855957,1740745432780,-2590.07032369,0.00063,60]
[354855958,1740745432807,-2420.56,0.00063027,120]
[354855959,1740745432834,-898.21,0.00063094,120]
[354855960,1740745432860,-2420.7062826,0.00063301,120]
[354855961,1740745432886,-151.29,0.00063315,30]
[354855962,1740745432914,-898.21,0.00063368,120]
[354855963,1740745432941,-1000000.0,0.000635,120]
[354855964,1740745432966,-1000000.0,0.000635,120]
[354855965,1740745432992,-638.0,0.00063541,60]
[354855966,1740745433018,-153.0,0.00063619,120]
[354855967,1740745433043,-153.0,0.00063632,120]
[354855968,1740745433069,-153.0,0.00063633,120]
[354855969,1740745433096,-898.21,0.00063642,120]
[354855970,1740745433122,-153.0,0.00063646,120]